fUSD/lending_fUSD_20250530
["ID","MTS","AMOUNT","RATE_DAILY","PERIOD"]
[363244249,1748644075771,1000.0,0.00019765,2]
[363244250,1748644081081,310.91,0.00019999,2]
[363244251,1748644090517,1013.3621946,0.0002,2]
[363244252,1748644091996,200.0,0.00019121,2]
[363244261,1748644150149,109904.7503404,0.0002,2]
[363244262,1748644164115,500.0,0.00019638,2]
[363244264,1748644170227,10479.1202824,0.0002,2]
[363244265,1748644176709,1000.0,0.00019643,2]
[363244285,1748644232101,-1099.323743,0.00020005,3]
[363244286,1748644232111,-250.0,0.00020005,2]
[363244287,1748644232120,-400.0,0.00020006,2]
[363244288,1748644232130,-151.0,0.00020006,2]
[363244289,1748644232140,-1200.0,0.00020008,2]
[363244290,1748644232150,-200.0,0.00020009,2]
[363244291,1748644232160,-300.0,0.00020009,2]
[363244292,1748644232170,-200.0,0.00020009,2]
[363244293,1748644232179,-151.0,0.0002001,2]
[363244294,1748644232188,-151.0,0.0002001,2]
[363244295,1748644232198,-151.0,0.0002001,2]
[363244296,1748644232208,-295.60259395,0.0002001,2]
[363244297,1748644232253,-51.78437105,0.0002001,2]
[363244298,1748644232262,-347.386965,0.0002001,2]
[363244299,1748644232272,-151.0,0.0002001,2]
[363244300,1748644232282,-153.978837,0.0002001,2]
[363244301,1748644232292,-98.16540482,0.00020011,2]
[363244302,1748644232304,-767.88,0.00020011,2]
[363244303,1748644232367,-135.29459518,0.00020011,2]
[363244304,1748644232377,-151.0,0.00020014,2]
[363244305,1748644232387,-241.666266,0.00020014,2]
[363244306,1748644232397,-241.666266,0.00020014,2]
[363244307,1748644232406,-473.341056,0.00020014,2]
[363244308,1748644232417,-375.73181682,0.00020014,2]
[363244309,1748644232428,-97.60923918,0.00020014,2]
[363244310,1748644232438,-152.380896,0.00020037,2]
[363244311,1748644232447,-151.0,0.00020037,2]
[363244312,1748644232457,-251.799463,0.00020037,2]
[363244313,1748644232467,-251.799463,0.00020037,2]
[363244314,1748644232476,-282.48,0.00020187,2]
[363244315,1748644232486,-200.0,0.000202,2]
[363244316,1748644232496,-5.90704291,0.000202,2]
[363244319,1748644232510,-194.09295709,0.000202,2]
[363244321,1748644232521,-1220.90704291,0.00020201,2]
[363244330,1748644232688,-663.78109867,0.00020201,2]
[363244331,1748644232700,-1994.1337225,0.00020201,2]
[363244332,1748644232710,-200.0,0.00020207,2]
[363244333,1748644232719,-208.358871,0.00020208,2]
[363244334,1748644232728,-208.358871,0.00020208,2]
[363244335,1748644232738,-151.0,0.00020208,2]
[363244336,1748644232747,-151.0,0.00020208,2]
[363244337,1748644232756,-151.0,0.00020208,2]
[363244338,1748644232766,-215.309077,0.00020208,2]
[363244339,1748644232775,-151.0,0.00020208,2]
[363244340,1748644232784,-151.0,0.00020208,2]
[363244341,1748644232794,-151.0,0.00020208,2]
[363244342,1748644232803,-188.260404,0.00020208,2]
[363244343,1748644232812,-188.260404,0.00020208,2]
[363244344,1748644232821,-150.0,0.00020208,2]
[363244345,1748644232830,-200.0,0.00020208,2]
[363244346,1748644232839,-214.77093474,0.00020208,2]
[363244359,1748644233139,-150.0,0.00020208,2]
[363244360,1748644233149,-500.0,0.00020208,2]
[363244361,1748644233160,-270.57878081,0.00020208,2]
[363244362,1748644233169,-150.0,0.00020208,2]
[363244363,1748644233179,-159.06441559,0.00020208,2]
[363244364,1748644233189,-151.16479345,0.00020208,2]
[363244365,1748644233199,-151.99940856,0.00020208,2]
[363244366,1748644233208,-150.0,0.00020208,2]
[363244367,1748644233218,-200.0,0.00020209,2]
[363244368,1748644233227,-200.0,0.00020209,2]
[363244369,1748644233237,-202.0271829,0.00020235,2]
[363244370,1748644233246,-150.0,0.00020235,2]
[363244371,1748644233255,-500.0,0.00020235,2]
[363244372,1748644233266,-207.42952703,0.00020235,2]
[363244373,1748644233276,-152.59800254,0.00020235,2]
[363244375,1748644233286,-150.0,0.00020263,2]
[363244377,1748644233296,-500.0,0.00020263,2]
[363244379,1748644233306,-187.97976,0.0002028,2]
[363244381,1748644233316,-282.55809693,0.0002029,2]
[363244383,1748644233326,-500.0,0.0002029,2]
[363244385,1748644233335,-165.99,0.00020292,2]
[363244387,1748644233345,-165.99,0.00020304,2]
[363244389,1748644233355,-165.99,0.00020317,2]
[363244391,1748644233365,-500.0,0.00020318,2]
[363244393,1748644233375,-165.99,0.0002033,2]
[363244395,1748644233385,-165.99,0.00020342,2]
[363244397,1748644233394,-500.0,0.00020345,2]
[363244399,1748644233404,-165.99,0.00020355,2]
[363244401,1748644233415,-165.99,0.00020368,2]
[363244403,1748644233425,-500.0,0.00020372,2]
[363244405,1748644233435,-165.99,0.0002038,2]
[363244407,1748644233445,-165.99,0.00020393,2]
[363244409,1748644233455,-638.198111,0.000204,2]
[363244411,1748644233465,-200.0,0.00020402,2]
[363244413,1748644233475,-200.0,0.00020402,2]
[363244415,1748644233485,-391.9760933,0.00020438,2]
[363244417,1748644233495,-167.186644,0.00020487,2]
[363244419,1748644233509,-151.0,0.00020515,2]
[363244421,1748644233518,-151.0,0.00020521,2]
[363244423,1748644233528,-151.0,0.00020521,2]
[363244425,1748644233539,-200.0,0.0002053,4]
[363244427,1748644233548,-156.587,0.00020554,2]
[363244429,1748644233558,-989.51063385,0.00020586,2]
[363244431,1748644233568,-4921.31,0.00020598,2]
[363244433,1748644233578,-234.522,0.00020598,2]
[363244435,1748644233590,-500.0,0.00020603,2]
[363244438,1748644233600,-200.0,0.00020606,2]
[363244439,1748644233609,-184.31,0.00020853,2]
[363244441,1748644233619,-151.0,0.000209,2]
[363244443,1748644233628,-151.0,0.000209,2]
[363244446,1748644233637,-6958.8893102,0.000209,4]
[363244447,1748644233647,-189.37,0.00020906,2]
[363244449,1748644233656,-1000.0,0.0002095,2]
[363244451,1748644233666,-302.74,0.00020956,2]
[363244453,1748644233676,-151.0,0.00020962,2]
[363244456,1748644233686,-151.0,0.00020962,2]
[363244457,1748644233696,-178.61,0.00020978,2]
[363244459,1748644233705,-151.0,0.00020986,2]
[363244462,1748644233715,-151.0,0.00020986,2]
[363244463,1748644233724,-251.83904,0.00020986,2]
[363244465,1748644233733,-251.83904,0.00020986,2]
[363244467,1748644233743,-208.358871,0.00020986,2]
[363244470,1748644233752,-208.358868,0.00020986,2]
[363244472,1748644233763,-1000.0,0.00020986,2]
[363244474,1748644233773,-300.0,0.00021,2]
[363244476,1748644233782,-301.13,0.00021,2]
[363244478,1748644233791,-305.83,0.00021,2]
[363244480,1748644233801,-303.29,0.00021005,2]
[363244482,1748644233810,-300.09,0.00021005,2]
[363244484,1748644233819,-303.09,0.00021005,2]
[363244486,1748644233829,-303.63,0.00021005,2]
[363244488,1748644233838,-302.41,0.00021005,2]
[363244490,1748644233848,-305.52,0.00021005,2]
[363244492,1748644233857,-303.2,0.00021005,2]
[363244493,1748644233867,-303.15,0.00021005,2]
[363244496,1748644233877,-302.64,0.00021005,2]
[363244497,1748644233886,-302.61,0.00021005,2]
[363244499,1748644233896,-303.63,0.00021005,2]
[363244502,1748644233906,-302.11,0.00021005,2]
[363244503,1748644233917,-302.59,0.00021005,2]
[363244506,1748644233927,-301.0,0.00021005,2]
[363244508,1748644233937,-304.24,0.00021005,2]
[363244509,1748644233947,-304.0,0.00021005,2]
[363244511,1748644233957,-303.01,0.00021005,2]
[363244513,1748644233967,-300.18,0.00021005,2]
[363244516,1748644233977,-305.52,0.00021005,2]
[363244518,1748644233990,-300.03,0.00021005,2]
[363244520,1748644234000,-304.19,0.00021005,2]
[363244522,1748644234009,-303.6,0.00021005,2]
[363244524,1748644234019,-303.19,0.00021005,2]
[363244526,1748644234028,-304.2,0.00021005,2]
[363244528,1748644234037,-305.92,0.00021005,2]
[363244530,1748644234047,-300.57,0.00021006,2]
[363244532,1748644234056,-300.54,0.00021006,2]
[363244534,1748644234066,-304.68,0.00021006,2]
[363244536,1748644234076,-301.44,0.00021006,2]
[363244538,1748644234085,-303.69,0.00021006,2]
[363244540,1748644234095,-302.28,0.00021006,2]
[363244542,1748644234104,-305.35,0.00021006,2]
[363244544,1748644234114,-305.61,0.00021006,2]
[363244546,1748644234124,-301.48,0.00021006,2]
[363244548,1748644234134,-302.41,0.00021007,2]
[363244550,1748644234144,-304.13,0.00021007,2]
[363244552,1748644234154,-303.08,0.00021007,2]
[363244554,1748644234165,-302.88,0.00021007,2]
[363244556,1748644234174,-304.34,0.00021007,2]
[363244558,1748644234184,-302.89,0.00021007,2]
[363244560,1748644234193,-301.74,0.00021008,2]
[363244562,1748644234203,-302.34,0.00021008,2]
[363244564,1748644234212,-301.83,0.00021008,2]
[363244566,1748644234222,-303.71,0.00021008,2]
[363244568,1748644234231,-304.72,0.00021008,2]
[363244570,1748644234241,-302.22,0.00021008,2]
[363244572,1748644234251,-303.06,0.00021008,2]
[363244574,1748644234260,-304.46,0.00021009,2]
[363244576,1748644234271,-300.32,0.00021009,2]
[363244578,1748644234280,-302.41,0.00021009,2]
[363244580,1748644234290,-302.09,0.00021009,2]
[363244582,1748644234300,-300.37,0.00021009,2]
[363244584,1748644234309,-300.42,0.0002101,2]
[363244586,1748644234319,-305.81,0.0002101,2]
[363244588,1748644234329,-305.1,0.0002101,2]
[363244590,1748644234339,-300.0,0.00021016,2]
[363244592,1748644234348,-562.54,0.0002104,3]
[363244594,1748644234358,-500.0,0.00021041,2]
[363244596,1748644234368,-500.0,0.00021049,2]
[363244598,1748644234378,-248.98894554,0.00021049,2]
[363244600,1748644234387,-44217.5265316,0.0002105,2]
[363244999,1748644238345,-0.6237168,0.0002105,2]
[363245154,1748644240867,-252240.41321057,0.0002105,2]
[363245156,1748644240877,-257.636036,0.0002105,2]
[363245158,1748644240886,-151.0,0.0002105,2]
[363245160,1748644240895,-154.121012,0.0002105,2]
[363245162,1748644240905,-151.0,0.0002105,2]
[363245164,1748644240913,-151.0,0.0002105,2]
[363245166,1748644240924,-151.0,0.0002105,2]
[363245168,1748644240934,-251.83904,0.0002105,2]
[363245170,1748644240943,-251.83904,0.0002105,2]
[363245172,1748644240952,-151.0,0.0002105,2]
[363245174,1748644240962,-151.0,0.0002105,2]
[363245176,1748644240971,-151.0,0.0002105,2]
[363245178,1748644240981,-151.0,0.0002105,2]
[363245180,1748644240991,-151.741766,0.0002105,2]
[363245183,1748644241001,-151.741766,0.0002105,2]
[363245184,1748644241009,-216.154967,0.0002105,2]
[363245187,1748644241019,-216.154967,0.0002105,2]
[363245188,1748644241028,-151.0,0.0002105,2]
[363245190,1748644241037,-158.726334,0.0002105,2]
[363245192,1748644241046,-151.0,0.0002105,2]
[363245194,1748644241055,-151.0,0.0002105,2]
[363245196,1748644241065,-151.0,0.0002105,2]
[363245198,1748644241074,-151.0,0.0002105,2]
[363245201,1748644241084,-151.0,0.0002105,2]
[363245203,1748644241094,-151.0,0.0002105,2]
[363245205,1748644241103,-251.799463,0.0002105,2]
[363245207,1748644241113,-251.799463,0.0002105,2]
[363245209,1748644241123,-151.0,0.0002105,2]
[363245211,1748644241132,-151.0,0.0002105,2]
[363245213,1748644241141,-151.0,0.0002105,2]
[363245215,1748644241150,-151.0,0.0002105,2]
[363245216,1748644241159,-151.0,0.0002105,2]
[363245219,1748644241170,-200.785118,0.0002105,2]
[363245221,1748644241179,-200.785118,0.0002105,2]
[363245223,1748644241189,-151.0,0.0002105,2]
[363245225,1748644241198,-151.0,0.0002105,2]
[363245227,1748644241207,-241.666266,0.0002105,2]
[363245228,1748644241217,-241.666266,0.0002105,2]
[363245231,1748644241227,-151.0,0.0002105,2]
[363245233,1748644241239,-638.198111,0.0002105,2]
[363245235,1748644241248,-188.260404,0.0002105,2]
[363245237,1748644241257,-188.260404,0.0002105,2]
[363245239,1748644241267,-473.341056,0.0002105,2]
[363245241,1748644241277,-151.0,0.0002105,2]
[363245243,1748644241286,-473.341056,0.0002105,2]
[363245245,1748644241295,-347.386965,0.0002105,2]
[363245247,1748644241304,-347.386965,0.0002105,2]
[363245249,1748644241314,-151.0,0.0002105,2]
[363245251,1748644241323,-596.973577,0.0002105,2]
[363245253,1748644241333,-596.973577,0.0002105,2]
[363245254,1748644241342,-151.0,0.0002105,2]
[363245256,1748644241352,-151.0,0.0002105,2]
[363245258,1748644241362,-151.0,0.0002105,2]
[363245260,1748644241372,-500.0,0.00021068,2]
[363245262,1748644241381,-151.0,0.00021071,2]
[363245264,1748644241390,-151.0,0.00021071,2]
[363245266,1748644241399,-151.0,0.00021071,2]
[363245268,1748644241409,-151.0,0.00021071,2]
[363245270,1748644241419,-251.83904,0.00021071,2]
[363245272,1748644241428,-251.83904,0.00021071,2]
[363245274,1748644241438,-151.0,0.00021071,2]
[363245276,1748644241447,-500.0,0.00021073,2]
[363245278,1748644241456,-500.0,0.00021073,2]
[363245280,1748644241466,-500.0,0.00021073,2]
[363245282,1748644241476,-162.380719,0.00021102,2]
[363245285,1748644241486,-10931.68843948,0.00021111,2]
[363245287,1748644241495,-186.110736,0.00021113,2]
[363245289,1748644241505,-186.110736,0.00021113,2]
[363245290,1748644241516,-151.0,0.00021113,2]
[363245292,1748644241527,-151.0,0.00021113,2]
[363245295,1748644241536,-151.0,0.00021113,2]
[363245297,1748644241546,-151.0,0.00021113,2]
[363245299,1748644241556,-251.83904,0.00021113,2]
[363245300,1748644241566,-251.83904,0.00021113,2]
[363245302,1748644241576,-151.0,0.00021113,2]
[363245304,1748644241585,-285.875665,0.00021113,2]
[363245307,1748644241595,-225.413472,0.00021113,2]
[363245309,1748644241605,-1026.9,0.00021141,2]
[363245311,1748644241616,-158.06,0.00021182,2]
[363245312,1748644241625,-310.91,0.00021369,2]
[363245314,1748644241634,-151.0,0.00021401,2]
[363245317,1748644241644,-151.0,0.00021401,2]
[363245318,1748644241653,-151.0,0.00021432,2]
[363245321,1748644241663,-151.0,0.00021432,2]
[363245322,1748644241674,-151.0,0.00021432,2]
[363245325,1748644241683,-251.83904,0.00021432,2]
[363245326,1748644241694,-251.83904,0.00021432,2]
[363245328,1748644241703,-5000.0,0.00021558,2]
[363245330,1748644241712,-79818.03609245,0.00021572,2]
[363245333,1748644241722,-186.110736,0.00021572,2]
[363245335,1748644241732,-186.110736,0.00021572,2]
[363245337,1748644241741,-151.0,0.00021572,2]
[363245339,1748644241750,-151.0,0.00021572,2]
[363245341,1748644241759,-251.83904,0.00021572,2]
[363245342,1748644241768,-251.83904,0.00021572,2]
[363245344,1748644241778,-151.0,0.00021572,2]
[363245346,1748644241787,-151.0,0.00021572,2]
[363245349,1748644241797,-151.0,0.00021572,2]
[363245350,1748644241806,-151.0,0.00021572,2]
[363245352,1748644241815,-151.741766,0.00021572,2]
[363245355,1748644241824,-151.741766,0.00021572,2]
[363245357,1748644241834,-216.154967,0.00021572,2]
[363245359,1748644241843,-216.154967,0.00021572,2]
[363245361,1748644241852,-151.0,0.00021572,2]
[363245363,1748644241862,-151.0,0.00021572,2]
[363245365,1748644241872,-151.0,0.00021572,2]
[363245367,1748644241881,-151.0,0.00021572,2]
[363245369,1748644241890,-151.0,0.00021572,2]
[363245371,1748644241899,-151.0,0.00021572,2]
[363245373,1748644241909,-200.785118,0.00021572,2]
[363245375,1748644241918,-200.785118,0.00021572,2]
[363245403,1748644242177,-151.0,0.0002158,2]
[363245405,1748644242188,-251.799463,0.0002158,2]
[363245407,1748644242198,-251.799463,0.0002158,2]
[363245409,1748644242208,-969.61,0.000216,2]
[363245411,1748644242217,-1000.0,0.00021621,2]
[363245413,1748644242227,-831.3615091,0.00021621,2]
[363245415,1748644242236,-500.67575605,0.00021621,2]
[363245418,1748644242246,-151.0,0.00021621,2]
[363245420,1748644242255,-6958.88931,0.00021624,5]
[363245421,1748644242265,-1500.0,0.00021644,2]
[363245424,1748644242274,-151.0,0.00021644,2]
[363245426,1748644242285,-220.532874,0.00021644,2]
[363245428,1748644242294,-151.0,0.00021644,2]
[363245430,1748644242303,-188.260404,0.00021644,2]
[363245432,1748644242312,-188.260404,0.00021644,2]
[363245434,1748644242322,-168.3888056,0.0002165,2]
[363245435,1748644242331,-151.0,0.00021658,2]
[363245438,1748644242341,-151.0,0.00021658,2]
[363245439,1748644242351,-241.666266,0.00021658,2]
[363245441,1748644242360,-241.666266,0.00021658,2]
[363245444,1748644242369,-161.899212,0.00021658,2]
[363245445,1748644242379,-473.341056,0.00021658,2]
[363245448,1748644242388,-151.0,0.00021658,2]
[363245450,1748644242398,-473.341056,0.00021658,2]
[363245452,1748644242407,-347.386965,0.00021658,2]
[363245454,1748644242416,-347.386965,0.00021658,2]
[363245455,1748644242427,-151.0,0.00021658,2]
[363245457,1748644242436,-596.973577,0.00021658,2]
[363245460,1748644242446,-596.973577,0.00021658,2]
[363245462,1748644242455,-151.0,0.00021658,2]
[363245464,1748644242464,-151.0,0.00021658,2]
[363245466,1748644242474,-151.0,0.00021658,2]
[363245468,1748644242483,-151.0,0.00021658,2]
[363245470,1748644242492,-207.4,0.00021658,2]
[363245472,1748644242502,-300.0,0.00021658,2]
[363245474,1748644242512,-300.0,0.00021658,2]
[363245476,1748644242525,-300.0,0.00021658,2]
[363245478,1748644242534,-156.0,0.00021658,2]
[363245480,1748644242544,-9216.856,0.00021658,2]
[363245482,1748644242553,-300.0,0.00021658,2]
[363245484,1748644242563,-151.0,0.00021658,2]
[363245486,1748644242573,-668.65185757,0.00021658,2]
[363245488,1748644242582,-300.0,0.00021658,2]
[363245490,1748644242593,-151.0,0.00021658,2]
[363245492,1748644242602,-300.0,0.00021658,2]
[363245494,1748644242611,-300.0,0.00021658,2]
[363245496,1748644242621,-300.0,0.00021658,2]
[363245498,1748644242631,-300.0,0.00021658,2]
[363245500,1748644242640,-300.0,0.00021658,2]
[363245502,1748644242648,-300.0,0.00021658,2]
[363245504,1748644242657,-300.0,0.00021658,2]
[363245506,1748644242666,-300.0,0.00021658,2]
[363245508,1748644242676,-300.0,0.00021658,2]
[363245510,1748644242687,-300.0,0.00021658,2]
[363245512,1748644242696,-300.0,0.00021658,2]
[363245514,1748644242705,-1115.157653,0.00021658,2]
[363245516,1748644242715,-151.0,0.00021658,2]
[363245518,1748644242724,-3592.81473506,0.000217,2]
[363245520,1748644242734,-638.198111,0.00021713,2]
[363245522,1748644242744,-638.198111,0.00021713,2]
[363245524,1748644242753,-9557.879672,0.00021713,2]
[363245526,1748644242762,-150.99,0.00021757,2]
[363245528,1748644242771,-999.99,0.00021757,2]
[363245530,1748644242781,-9911.52121986,0.00021768,2]
[363245532,1748644242791,-1000.0,0.00021773,2]
[363245534,1748644242800,-151.0,0.00021787,2]
[363245536,1748644242809,-154.109727,0.00021787,2]
[363245538,1748644242819,-251.83904,0.00021787,2]
[363245540,1748644242828,-251.839047,0.00021787,2]
[363245542,1748644242838,-151.0,0.00021787,2]
[363245544,1748644242847,-420.0,0.00021787,2]
[363245546,1748644242856,-500.0,0.00021808,2]
[363245548,1748644242866,-10278.247505,0.00021823,2]
[363245551,1748644242875,-819.0,0.00021872,2]
[363245553,1748644242885,-10658.54266268,0.00021878,2]
[363245555,1748644242894,-1680.0,0.00021891,2]
[363245557,1748644242903,-165.21775913,0.00021899,2]
[363245559,1748644242913,-160.28185555,0.00021899,2]
[363245561,1748644242923,-250.44840241,0.00021899,2]
[363245563,1748644242933,-176.24125853,0.00021899,2]
[363245565,1748644242942,-185.081108,0.000219,2]
[363245566,1748644242951,-151.0,0.000219,2]
[363245569,1748644242960,-151.0,0.000219,2]
[363245570,1748644242969,-151.0,0.000219,2]
[363245572,1748644242978,-151.0,0.000219,2]
[363245574,1748644242987,-216.154967,0.000219,2]
[363245576,1748644242996,-216.154967,0.000219,2]
[363245579,1748644243006,-150.0,0.000219,2]
[363245582,1748644243015,-151.0,0.000219,2]
[363245584,1748644243024,-151.0,0.000219,2]
[363245586,1748644243033,-151.0,0.000219,2]
[363245587,1748644243043,-151.0,0.000219,2]
[363245590,1748644243052,-251.799463,0.000219,2]
[363245592,1748644243062,-251.799463,0.000219,2]
[363245594,1748644243071,-151.0,0.000219,2]
[363245597,1748644243081,-151.0,0.000219,2]
[363245599,1748644243090,-638.198111,0.000219,2]
[363245601,1748644243099,-638.198111,0.000219,2]
[363245603,1748644243108,-473.341056,0.000219,2]
[363245605,1748644243117,-473.341056,0.000219,2]
[363245607,1748644243127,-151.0,0.000219,2]
[363245609,1748644243136,-151.0,0.000219,2]
[363245611,1748644243145,-6556.93668544,0.000219,2]
[363245613,1748644243155,-6556.93668536,0.000219,2]
[363245614,1748644243164,-6556.93668536,0.000219,2]
[363245617,1748644243176,-6556.93668536,0.000219,2]
[363245618,1748644243186,-6556.93668536,0.00021908,2]
[363245621,1748644243196,-45662.14108091,0.00021912,2]
[363245623,1748644243206,-151.0,0.00021912,2]
[363245625,1748644243216,-151.741766,0.00021912,2]
[363245626,1748644243225,-151.741766,0.00021912,2]
[363245627,1748644243234,-151.0,0.00021912,2]
[363245628,1748644243244,-241.666266,0.00021912,2]
[363245629,1748644243253,-241.666266,0.00021912,2]
[363245630,1748644243263,-151.0,0.00021918,7]
[363245631,1748644243272,-151.0,0.00021918,7]
[363245632,1748644243282,-186.110736,0.00021918,7]
[363245633,1748644243291,-186.110736,0.00021918,7]
[363245634,1748644243301,-151.0,0.00021918,7]
[363245635,1748644243311,-151.0,0.00021918,7]
[363245636,1748644243321,-268.852666,0.00021918,7]
[363245637,1748644243331,-217.181749,0.00021918,7]
[363245639,1748644243341,-216.154967,0.00021918,7]
[363245641,1748644243351,-216.154967,0.00021918,7]
[363245643,1748644243361,-151.0,0.00021918,7]
[363245645,1748644243370,-151.0,0.00021918,7]
[363245647,1748644243380,-151.0,0.00021918,7]
[363245649,1748644243390,-151.0,0.00021918,7]
[363245651,1748644243399,-151.0,0.00021918,7]
[363245653,1748644243409,-251.799463,0.00021918,7]
[363245655,1748644243421,-251.799463,0.00021918,7]
[363245657,1748644243431,-151.0,0.00021918,7]
[363245659,1748644243440,-151.0,0.00021918,7]
[363245661,1748644243450,-155.975504,0.00021918,7]
[363245663,1748644243458,-151.0,0.00021918,7]
[363245665,1748644243467,-200.785118,0.00021918,7]
[363245666,1748644243477,-200.785118,0.00021918,7]
[363245668,1748644243486,-151.0,0.00021918,7]
[363245671,1748644243495,-241.666266,0.00021918,7]
[363245673,1748644243505,-241.666266,0.00021918,7]
[363245675,1748644243517,-638.198111,0.00021918,7]
[363245676,1748644243527,-638.198111,0.00021918,7]
[363245678,1748644243536,-188.260404,0.00021918,7]
[363245680,1748644243546,-188.260404,0.00021918,7]
[363245682,1748644243555,-473.341056,0.00021918,7]
[363245684,1748644243565,-237.819302,0.00021918,7]
[363245686,1748644243574,-500.0,0.00021918,2]
[363245688,1748644243584,-500.0,0.00021918,2]
[363245690,1748644243595,-976.0545296,0.00021918,2]
[363245692,1748644243604,-500.0,0.00021918,2]
[363245693,1748644243613,-976.0545296,0.00021918,2]
[363245694,1748644243623,-161.27486086,0.00021918,2]
[363245695,1748644243631,-500.0,0.00021918,2]
[363245696,1748644243640,-976.0545296,0.00021918,2]
[363245697,1748644243650,-500.0,0.00021918,2]
[363245698,1748644243659,-976.0545296,0.00021918,2]
[363245699,1748644243668,-500.0,0.00021918,2]
[363245700,1748644243680,-976.0545296,0.00021918,2]
[363245701,1748644243690,-976.0545296,0.00021918,2]
[363245702,1748644243709,-976.0545296,0.00021918,2]
[363245703,1748644243718,-976.0545296,0.00021918,2]
[363245704,1748644243727,-976.0545296,0.00021918,2]
[363245705,1748644243736,-976.0545296,0.00021918,2]
[363245706,1748644243745,-976.0545296,0.00021918,2]
[363245707,1748644243755,-976.0545296,0.00021918,2]
[363245708,1748644243764,-976.0545296,0.00021918,2]
[363245709,1748644243774,-976.0545296,0.00021918,2]
[363245710,1748644243783,-976.0545296,0.00021918,2]
[363245711,1748644243792,-976.0545296,0.00021918,2]
[363245712,1748644243803,-976.0545296,0.00021918,2]
[363245713,1748644243812,-976.0545296,0.00021918,2]
[363245714,1748644243822,-976.0545296,0.00021918,2]
[363245715,1748644243831,-976.0545296,0.00021918,2]
[363245716,1748644243841,-976.0545296,0.00021918,2]
[363245717,1748644243850,-976.0545296,0.00021918,2]
[363245718,1748644243860,-976.0545296,0.00021918,2]
[363245719,1748644243869,-976.0545296,0.00021918,2]
[363245720,1748644243879,-976.0545296,0.00021918,2]
[363245721,1748644243889,-976.0545296,0.00021918,2]
[363245722,1748644243898,-976.0545296,0.00021918,2]
[363245723,1748644243907,-976.0545296,0.00021918,2]
[363245724,1748644243916,-976.0545296,0.00021918,2]
[363245725,1748644243928,-976.0545296,0.00021918,2]
[363245726,1748644243937,-976.0545296,0.00021918,2]
[363245727,1748644243947,-976.0545296,0.00021918,2]
[363245728,1748644243956,-976.0545296,0.00021918,2]
[363245729,1748644243965,-976.0545296,0.00021918,2]
[363245730,1748644243975,-976.0545296,0.00021918,2]
[363245731,1748644243984,-976.0545296,0.00021918,2]
[363245732,1748644243994,-976.0545296,0.00021918,2]
[363245733,1748644244004,-976.0545296,0.00021918,2]
[363245734,1748644244013,-976.0545296,0.00021918,2]
[363245735,1748644244022,-976.0545296,0.00021918,2]
[363245736,1748644244032,-976.0545296,0.00021918,2]
[363245737,1748644244042,-976.0545296,0.00021918,2]
[363245738,1748644244051,-976.0545296,0.00021918,2]
[363245739,1748644244061,-976.0545296,0.00021918,2]
[363245740,1748644244070,-976.0545296,0.00021918,2]
[363245741,1748644244079,-976.0545296,0.00021918,2]
[363245742,1748644244089,-473.341056,0.00021918,7]
[363245743,1748644244098,-347.386965,0.00021918,7]